[Event "Aktobe Open 2022"]
[Site "Aktobe"]
[Date "2022.06.14"]
[Round "1.1"]
[White "Ponkratov, Pavel"]
[Black "Akhmedinov, Satbek"]
[Result "1-0"]
[ECO "C45"]
[WhiteElo "2624"]
[BlackElo "1705"]
[Annotator "RC"]
[PlyCount "71"]
[EventDate "2022.06.14"]
[EventType "swiss"]
[EventCountry "KAZ"]
[SourceTitle "playchess.com"]
[Source "ChessBase"]
[SourceQuality "1"]
[TimeControl "5400+30"]

1. e4 {[%emt 0:00:02]} e5 {[%emt 0:01:52]} 2. Nf3 {[%emt 0:00:09]} Nc6 {[%emt 0:00:12]} 3. d4 {[%emt 0:00:06]} exd4 {[%emt 0:00:11]} 4. Nxd4 {[%emt 0:00:05]} Nf6 {[%emt 0:01:45]} 5. Nxc6 {[%emt 0:00:08]} bxc6 {[%emt 0:00:06]} 6. e5 {[%emt 0:00:03]} Qe7 {[%emt 0:00:13]} 7. Qe2 {[%emt 0:00:06]} Nd5 {[%emt 0:00:05]} 8. h4 {[%emt 0:00:11]} d6 {[%emt 0:09:42]} 9. c4 {[%emt 0:00:25]} Nb6 {[%emt 0:00:44]} 10. exd6 {[%emt 0:00:13]} cxd6 {[%emt 0:00:29]} 11. Nc3 {[%emt 0:00:11]} Be6 {[%emt 0:03:37]} 12. b3 {[%emt 0:01:12]} g6 {[%emt 0:06:07]} 13. Bg5 {[%emt 0:02:36]} f6 {[%emt 0:00:13]} 14. Bf4 {[%emt 0:00:58]} Bg7 {[%emt 0:01:17]} 15. O-O-O {[%emt 0:01:57]} d5 {[%emt 0:04:32]} 16. Re1 {[%emt 0:03:53]} Kf7 {[%emt 0:04:37]} 17. c5 {[%emt 0:00:07]} Nc8 {[%emt 0:08:35]} 18. h5 {[%emt 0:02:18]} Re8 {[%emt 0:01:43]} 19. hxg6+ {[%emt 0:02:04]} hxg6 {[%emt 0:00:06]} 20. Na4 {[%emt 0:06:37]} Bg4 {[%emt 0:06:21]} 21. f3 {[%emt 0:01:00]} Bf5 {[%emt 0:09:10]} 22. Kd2 {[%emt 0:08:02]} g5 {[%emt 0:01:39]} 23. Bc7 {[%emt 0:01:53]} Be6 {[%emt 0:05:06]} 24. Ba5 {[%emt 0:02:42]} f5 {[%emt 0:07:17]} 25. f4 {[%emt 0:00:30]} g4 {[%emt 0:01:52]} 26. g3 {[%emt 0:16:36]} Qf6 {[%emt 0:00:37]} 27. Bc7 {[%emt 0:05:50]} Qd4+ {[%emt 0:01:50]} 28. Qd3 {[%emt 0:00:33]} Qb4+ {[%emt 0:02:48]} 29. Kd1 {[%emt 0:00:11]} Ne7 {[%emt 0:01:01]} 30. Rh7 {[%emt 0:01:08]} Ng6 {[%emt 0:07:23]} 31. Rxe6 {[%emt 0:01:00]} Kxe6 {[%emt 0:00:03]} 32. Rxg7 {[%emt 0:02:29]} Kf6 {[%emt 0:00:01]} 33. Rd7 {[%emt 0:03:30]} Re1+ {[%emt 0:01:20]} 34. Kc2 {[%emt 0:00:21]} Rh8 {[%emt 0:05:20]} 35. Bd8+ {[%emt 0:00:11]} Ne7 {[%emt 0:00:05]} 36. Be2 {[%emt 0:05:33]} 1-0

[Event "Aktobe Open 2022"]
[Site "Aktobe"]
[Date "2022.06.14"]
[Round "1.2"]
[White "Talgatov, Nazar"]
[Black "Afanasiev, Nikita"]
[Result "0-1"]
[ECO "B40"]
[WhiteElo "1845"]
[BlackElo "2567"]
[Annotator "RC"]
[PlyCount "60"]
[EventDate "2022.06.14"]
[EventType "swiss"]
[EventCountry "KAZ"]
[SourceTitle "playchess.com"]
[Source "ChessBase"]
[SourceQuality "1"]
[TimeControl "5400+30"]

1. e4 {[%emt 0:00:02]} c5 {[%emt 0:00:30]} 2. b3 {[%emt 0:00:09]} b6 {[%emt 0:00:21]} 3. Bb2 {[%emt 0:00:21]} Bb7 {[%emt 0:00:04]} 4. Nc3 {[%emt 0:00:42]} e6 {[%emt 0:00:11]} 5. Nf3 {[%emt 0:00:25]} Nc6 {[%emt 0:00:38]} 6. Be2 {[%emt 0:00:44]} Nge7 {[%emt 0:02:22]} 7. O-O {[%emt 0:00:36]} Ng6 {[%emt 0:01:36]} 8. d4 {[%emt 0:13:05]} cxd4 {[%emt 0:00:27]} 9. Nxd4 {[%emt 0:00:12]} Bc5 {[%emt 0:00:18]} 10. Ndb5 {[%emt 0:10:04]} O-O {[%emt 0:05:56]} 11. Nd6 {[%emt 0:00:43]} Qb8 {[%emt 0:00:11]} 12. Nxb7 {[%emt 0:00:43]} Qxb7 {[%emt 0:00:04]} 13. Qd2 {[%emt 0:02:30]} Bd4 {[%emt 0:00:49]} 14. Ba3 {[%emt 0:10:21]} Rfd8 {[%emt 0:00:51]} 15. Nb5 {[%emt 0:08:55]} Bxa1 {[%emt 0:00:22]} 16. Nd6 {[%emt 0:03:20]} Qc7 {[%emt 0:00:07]} 17. Rxa1 {[%emt 0:00:16]} a6 {[%emt 0:00:48]} 18. f4 {[%emt 0:04:11]} b5 {[%emt 0:04:52]} 19. Bb2 {[%emt 0:19:43]} f6 {[%emt 0:02:06]} 20. Rf1 {[%emt 0:05:50]} Qa5 {[%emt 0:03:08]} 21. Qe3 {[%emt 0:02:36]} Qxa2 {[%emt 0:01:18]} 22. Ba1 {[%emt 0:00:21]} Qxc2 {[%emt 0:02:59]} 23. Rc1 {[%emt 0:02:05]} Qa2 {[%emt 0:00:12]} 24. e5 {[%emt 0:00:07]} fxe5 {[%emt 0:02:06]} 25. f5 {[%emt 0:00:38]} Nd4 {[%emt 0:00:48]} 26. Bf3 {[%emt 0:01:27]} Nxf3+ {[%emt 0:03:45]} 27. Qxf3 {[%emt 0:00:08]} Nh4 {[%emt 0:00:54]} 28. Qg3 {[%emt 0:00:14]} Qd2 {[%emt 0:00:34]} 29. Rf1 {[%emt 0:00:32]} Qxd6 {[%emt 0:00:10]} 30. Bxe5 {[%emt 0:00:07]} Qc5+ {[%emt 0:00:16]} 0-1

[Event "Aktobe Open 2022"]
[Site "Aktobe"]
[Date "2022.06.14"]
[Round "1.3"]
[White "Nesterov, Arseniy"]
[Black "Amangeldy, Ernur"]
[Result "1-0"]
[ECO "D44"]
[WhiteElo "2569"]
[BlackElo "1682"]
[Annotator "RC"]
[PlyCount "47"]
[EventDate "2022.06.14"]
[EventType "swiss"]
[EventCountry "KAZ"]
[SourceTitle "playchess.com"]
[Source "ChessBase"]
[SourceQuality "1"]
[TimeControl "5400+30"]

1. d4 {[%emt 0:00:03]} d5 {[%emt 0:02:30]} 2. c4 {[%emt 0:00:06]} c6 {[%emt 0:00:05]} 3. Nf3 {[%emt 0:00:20]} Nf6 {[%emt 0:00:06]} 4. Nc3 {[%emt 0:00:06]} e6 {[%emt 0:00:10]} 5. Bg5 {[%emt 0:01:05]} dxc4 {[%emt 0:00:33]} 6. e4 {[%emt 0:03:54]} b5 {[%emt 0:00:08]} 7. e5 {[%emt 0:00:09]} h6 {[%emt 0:00:07]} 8. Bh4 {[%emt 0:00:03]} g5 {[%emt 0:00:05]} 9. Nxg5 {[%emt 0:00:03]} hxg5 {[%emt 0:00:02]} 10. Bxg5 {[%emt 0:00:06]} Nbd7 {[%emt 0:00:06]} 11. g3 {[%emt 0:01:25]} Bb7 {[%emt 0:01:40]} 12. Bg2 {[%emt 0:00:12]} Qb6 {[%emt 0:00:37]} 13. exf6 {[%emt 0:00:07]} O-O-O {[%emt 0:00:07]} 14. O-O {[%emt 0:00:21]} b4 {[%emt 0:04:52]} 15. Ne4 {[%emt 0:02:43]} c5 {[%emt 0:28:09]} 16. Qe2 {[%emt 0:09:08]} Bd5 {[%emt 0:06:32]} 17. Rac1 {[%emt 0:02:23]} Qb5 {[%emt 0:13:46]} 18. b3 {[%emt 0:03:33]} Nb6 {[%emt 0:00:39]} 19. dxc5 {[%emt 0:01:42]} Bxc5 {[%emt 0:01:37]} 20. bxc4 {[%emt 0:00:21]} Nxc4 {[%emt 0:03:14]} 21. Rfd1 {[%emt 0:13:02]} Rd7 {[%emt 0:07:24]} 22. Nxc5 {[%emt 0:01:04]} Qxc5 {[%emt 0:00:41]} 23. Be3 {[%emt 0:00:33]} Qc7 {[%emt 0:01:54]} 24. Rd4 {[%emt 0:00:33]} 1-0

[Event "Aktobe Open 2022"]
[Site "Aktobe"]
[Date "2022.06.14"]
[Round "1.4"]
[White "Bayantas, Asman"]
[Black "Vakhidov, Jakhongir"]
[Result "0-1"]
[ECO "D75"]
[WhiteElo "1789"]
[BlackElo "2552"]
[Annotator "RC"]
[PlyCount "82"]
[EventDate "2022.06.14"]
[EventType "swiss"]
[EventCountry "KAZ"]
[SourceTitle "playchess.com"]
[Source "ChessBase"]
[SourceQuality "1"]
[TimeControl "5400+30"]

1. d4 {[%emt 0:00:02]} Nf6 {[%emt 0:00:55]} 2. c4 {[%emt 0:00:26]} g6 {[%emt 0:00:29]} 3. Nc3 {[%emt 0:00:23]} Bg7 {[%emt 0:00:09]} 4. g3 {[%emt 0:00:11]} d5 {[%emt 0:02:16]} 5. cxd5 {[%emt 0:00:57]} Nxd5 {[%emt 0:00:10]} 6. Bg2 {[%emt 0:00:12]} Nxc3 {[%emt 0:02:14]} 7. bxc3 {[%emt 0:00:04]} c5 {[%emt 0:00:29]} 8. Nf3 {[%emt 0:05:35]} cxd4 {[%emt 0:00:45]} 9. cxd4 {[%emt 0:00:06]} O-O {[%emt 0:00:14]} 10. O-O {[%emt 0:00:18]} Nc6 {[%emt 0:00:05]} 11. e3 {[%emt 0:02:28]} Be6 {[%emt 0:00:19]} 12. Nd2 {[%emt 0:04:50]} Rc8 {[%emt 0:00:48]} 13. a4 {[%emt 0:22:35]} Bd5 {[%emt 0:16:24]} 14. Bh3 {[%emt 0:01:16]} Rc7 {[%emt 0:00:14]} 15. Ba3 {[%emt 0:01:11]} Re8 {[%emt 0:02:31]} 16. Rb1 {[%emt 0:24:19]} e5 {[%emt 0:18:50]} 17. e4 {[%emt 0:02:55]} Be6 {[%emt 0:05:56]} 18. Bxe6 {[%emt 0:01:42]} fxe6 {[%emt 0:00:10]} 19. Nc4 {[%emt 0:08:00]} Qxd4 {[%emt 0:02:55]} 20. Nd6 {[%emt 0:04:41]} Qxd1 {[%emt 0:00:47]} 21. Rfxd1 {[%emt 0:00:07]} Rb8 {[%emt 0:01:50]} 22. Nb5 {[%emt 0:07:37]} Rf7 {[%emt 0:00:20]} 23. Rd6 {[%emt 0:05:07]} a6 {[%emt 0:06:28]} 24. Nc3 {[%emt 0:01:29]} Nd4 {[%emt 0:01:34]} 25. Rdb6 {[%emt 0:03:20]} Rc8 {[%emt 0:02:18]} 26. Nd1 {[%emt 0:00:07]} Nf3+ {[%emt 0:01:11]} 27. Kg2 {[%emt 0:00:39]} Nd2 {[%emt 0:00:14]} 28. Rc1 {[%emt 0:00:15]} Nc4 {[%emt 0:00:41]} 29. Rb3 {[%emt 0:03:26]} Rfc7 {[%emt 0:00:09]} 30. Rbc3 {[%emt 0:00:33]} Bh6 {[%emt 0:02:48]} 31. R1c2 {[%emt 0:00:17]} Rc6 {[%emt 0:01:31]} 32. Bc1 {[%emt 0:00:34]} Bf8 {[%emt 0:01:05]} 33. Kf3 {[%emt 0:00:27]} Bb4 {[%emt 0:30:11]} 34. Rb3 {[%emt 0:00:08]} a5 {[%emt 0:00:00]} 35. Ke2 {[%emt 0:00:42]} Nb6 {[%emt 0:00:00]} 36. Rxc6 {[%emt 0:00:16]} bxc6 {[%emt 0:00:00]} 37. Nb2 {[%emt 0:01:09]} c5 {[%emt 0:00:00]} 38. Rf3 {[%emt 0:00:27]} c4 {[%emt 0:00:00]} 39. Be3 {[%emt 0:00:27]} c3 {[%emt 0:00:00]} 40. Nd3 {[%emt 0:00:33]} Nxa4 {[%emt 0:00:00]} 41. Nxe5 {[%emt 0:00:23]} c2 {[%emt 0:00:00]} 0-1

[Event "Aktobe Open 2022"]
[Site "Aktobe"]
[Date "2022.06.14"]
[Round "1.5"]
[White "Sivuk, Vitaly"]
[Black "Togussov, Uakpai"]
[Result "1-0"]
[ECO "A84"]
[WhiteElo "2529"]
[BlackElo "1823"]
[Annotator "RC"]
[PlyCount "88"]
[EventDate "2022.06.14"]
[EventType "swiss"]
[EventCountry "KAZ"]
[SourceTitle "playchess.com"]
[Source "ChessBase"]
[SourceQuality "1"]
[TimeControl "5400+30"]

1. d4 {[%emt 0:00:07]} d5 {[%emt 0:00:25]} 2. c4 {[%emt 0:00:10]} e6 {[%emt 0:00:02]} 3. Nf3 {[%emt 0:00:11]} f5 {[%emt 0:01:41]} 4. Nc3 {[%emt 0:00:13]} Nf6 {[%emt 0:00:10]} 5. Bf4 {[%emt 0:00:12]} c6 {[%emt 0:00:22]} 6. e3 {[%emt 0:00:09]} Bd6 {[%emt 0:00:37]} 7. Bd3 {[%emt 0:00:15]} O-O {[%emt 0:00:18]} 8. O-O {[%emt 0:00:08]} Qc7 {[%emt 0:00:43]} 9. Bxd6 {[%emt 0:01:27]} Qxd6 {[%emt 0:00:17]} 10. c5 {[%emt 0:00:24]} Qc7 {[%emt 0:00:11]} 11. b4 {[%emt 0:00:13]} a6 {[%emt 0:00:33]} 12. a4 {[%emt 0:00:08]} Nbd7 {[%emt 0:00:46]} 13. b5 {[%emt 0:00:33]} axb5 {[%emt 0:00:08]} 14. axb5 {[%emt 0:00:05]} Rxa1 {[%emt 0:00:02]} 15. Qxa1 {[%emt 0:00:08]} Ne4 {[%emt 0:00:26]} 16. b6 {[%emt 0:01:31]} Qd8 {[%emt 0:00:15]} 17. Ne2 {[%emt 0:00:12]} g5 {[%emt 0:00:36]} 18. Qb2 {[%emt 0:05:21]} Qf6 {[%emt 0:02:23]} 19. Bxe4 {[%emt 0:01:23]} fxe4 {[%emt 0:00:32]} 20. Ne5 {[%emt 0:00:09]} Nxe5 {[%emt 0:02:15]} 21. dxe5 {[%emt 0:00:05]} Qe7 {[%emt 0:00:07]} 22. Qc3 {[%emt 0:05:33]} h5 {[%emt 0:02:33]} 23. f4 {[%emt 0:07:44]} exf3 {[%emt 0:07:12]} 24. Rxf3 {[%emt 0:02:49]} Bd7 {[%emt 0:04:50]} 25. Rf6 {[%emt 0:03:06]} Kg7 {[%emt 0:06:20]} 26. Rxf8 {[%emt 0:01:29]} Qxf8 {[%emt 0:00:32]} 27. Nd4 {[%emt 0:00:15]} Kg6 {[%emt 0:05:14]} 28. Qc2+ {[%emt 0:01:23]} Kh6 {[%emt 0:00:35]} 29. h4 {[%emt 0:14:34]} Qg7 {[%emt 0:05:26]} 30. Nf3 {[%emt 0:00:47]} gxh4 {[%emt 0:02:17]} 31. Qa4 {[%emt 0:00:37]} Qg4 {[%emt 0:13:44]} 32. Qf4+ {[%emt 0:00:39]} Qxf4 {[%emt 0:00:43]} 33. exf4 {[%emt 0:00:05]} Kg6 {[%emt 0:03:20]} 34. Nxh4+ {[%emt 0:02:14]} Kh6 {[%emt 0:00:21]} 35. Kf2 {[%emt 0:00:14]} Kg7 {[%emt 0:00:48]} 36. Ke3 {[%emt 0:02:33]} Kf7 {[%emt 0:01:04]} 37. g3 {[%emt 0:00:58]} Kg7 {[%emt 0:00:14]} 38. Nf3 {[%emt 0:00:08]} Kg6 {[%emt 0:00:23]} 39. Nd4 {[%emt 0:00:07]} Kf7 {[%emt 0:03:00]} 40. f5 {[%emt 0:03:19]} exf5 {[%emt 0:00:16]} 41. Kf4 {[%emt 0:00:17]} Ke7 {[%emt 0:06:29]} 42. Kg5 {[%emt 0:00:18]} Be8 {[%emt 0:03:24]} 43. Kxf5 {[%emt 0:00:24]} Bd7+ {[%emt 0:01:05]} 44. e6 {[%emt 0:00:21]} Bc8 {[%emt 0:29:51]} 1-0

[Event "Aktobe Open 2022"]
[Site "Aktobe"]
[Date "2022.06.14"]
[Round "1.6"]
[White "Dayanova, Regina"]
[Black "Rychagov, Andrey"]
[Result "0-1"]
[ECO "A80"]
[WhiteElo "1802"]
[BlackElo "2549"]
[Annotator "RC"]
[PlyCount "48"]
[EventDate "2022.06.14"]
[EventType "swiss"]
[EventCountry "KAZ"]
[SourceTitle "playchess.com"]
[Source "ChessBase"]
[SourceQuality "1"]
[TimeControl "5400+30"]

1. d4 {[%emt 0:00:04]} f5 {[%emt 0:10:12]} 2. Bg5 {[%emt 0:00:09]} g6 {[%emt 0:00:50]} 3. Nc3 {[%emt 0:00:20]} d5 {[%emt 0:03:57]} 4. Qd2 {[%emt 0:01:04]} Bg7 {[%emt 0:02:21]} 5. e3 {[%emt 0:02:40]} Nf6 {[%emt 0:04:22]} 6. O-O-O {[%emt 0:03:17]} Be6 {[%emt 0:05:17]} 7. h4 {[%emt 0:06:26]} Nbd7 {[%emt 0:02:35]} 8. Nh3 {[%emt 0:02:45]} Bf7 {[%emt 0:03:41]} 9. Be2 {[%emt 0:08:06]} h6 {[%emt 0:13:51]} 10. Bxf6 {[%emt 0:02:40]} Nxf6 {[%emt 0:02:36]} 11. Na4 {[%emt 0:09:35]} Qd6 {[%emt 0:04:23]} 12. Nc5 {[%emt 0:04:04]} b6 {[%emt 0:01:58]} 13. Nd3 {[%emt 0:01:33]} Ne4 {[%emt 0:02:50]} 14. Qb4 {[%emt 0:05:36]} c5 {[%emt 0:02:02]} 15. Qa4+ {[%emt 0:01:28]} Kf8 {[%emt 0:00:18]} 16. g4 {[%emt 0:04:28]} c4 {[%emt 0:04:24]} 17. Ndf4 {[%emt 0:02:44]} g5 {[%emt 0:03:07]} 18. hxg5 {[%emt 0:06:40]} hxg5 {[%emt 0:00:24]} 19. Nh5 {[%emt 0:03:09]} fxg4 {[%emt 0:03:37]} 20. Nxg7 {[%emt 0:04:02]} gxh3 {[%emt 0:00:26]} 21. Nf5 {[%emt 0:00:45]} Qe6 {[%emt 0:01:18]} 22. Ng3 {[%emt 0:03:06]} Nxg3 {[%emt 0:02:45]} 23. fxg3 {[%emt 0:00:07]} Qxe3+ {[%emt 0:00:03]} 24. Rd2 {[%emt 0:00:09]} Qxg3 {[%emt 0:00:38]} 0-1

[Event "Aktobe Open 2022"]
[Site "Aktobe"]
[Date "2022.06.14"]
[Round "1.7"]
[White "Vokhidov, Shamsiddin"]
[Black "Galymzhanuly, Ibragim"]
[Result "1-0"]
[ECO "B01"]
[WhiteElo "2536"]
[BlackElo "1800"]
[Annotator "RC"]
[PlyCount "73"]
[EventDate "2022.06.14"]
[EventType "swiss"]
[EventCountry "KAZ"]
[SourceTitle "playchess.com"]
[Source "ChessBase"]
[SourceQuality "1"]
[TimeControl "5400+30"]

1. e4 {[%emt 1:31:00]} d5 {[%emt 0:01:41]} 2. exd5 {[%emt 0:00:00]} Qxd5 {[%emt 0:00:03]} 3. Nc3 {[%emt 0:00:00]} Qd6 {[%emt 0:00:04]} 4. d4 {[%emt 0:00:00]} c6 {[%emt 0:00:03]} 5. Ne4 {[%emt 0:00:00]} Qd8 {[%emt 0:02:20]} 6. Bc4 {[%emt 0:00:00]} Bf5 {[%emt 0:01:12]} 7. Ng3 {[%emt 0:00:00]} Bg6 {[%emt 0:03:11]} 8. h4 {[%emt 0:00:00]} h6 {[%emt 0:00:04]} 9. N1e2 {[%emt 0:00:00]} e6 {[%emt 0:04:58]} 10. Nf4 {[%emt 0:00:00]} Bh7 {[%emt 0:00:06]} 11. c3 {[%emt 0:00:00]} Nf6 {[%emt 0:00:32]} 12. O-O {[%emt 0:00:00]} Bd6 {[%emt 0:04:47]} 13. Ngh5 {[%emt 0:00:00]} O-O {[%emt 0:01:01]} 14. Re1 {[%emt 0:00:00]} Re8 {[%emt 0:05:44]} 15. Nxf6+ {[%emt 0:00:00]} Qxf6 {[%emt 0:00:02]} 16. Nh5 {[%emt 0:00:00]} Qxh4 {[%emt 0:02:57]} 17. g3 {[%emt 0:00:00]} Qd8 {[%emt 0:06:31]} 18. Bxh6 {[%emt 0:00:00]} gxh6 {[%emt 0:00:53]} 19. Qg4+ {[%emt 0:00:00]} Bg6 {[%emt 0:01:21]} 20. Bxe6 {[%emt 0:00:00]} Rxe6 {[%emt 0:24:28]} 21. Rxe6 {[%emt 0:00:00]} Kh7 {[%emt 0:05:08]} 22. Nf6+ {[%emt 0:00:00]} Kg7 {[%emt 0:00:01]} 23. Rxd6 {[%emt 0:00:00]} Qe7 {[%emt 0:00:26]} 24. Qf4 {[%emt 0:00:00]} Na6 {[%emt 0:00:42]} 25. Ng4 {[%emt 0:00:00]} Qg5 {[%emt 0:00:32]} 26. Qxg5 {[%emt 0:00:00]} hxg5 {[%emt 0:00:02]} 27. Re1 {[%emt 0:00:00]} Nc7 {[%emt 0:00:20]} 28. Rd7 {[%emt 0:00:00]} Bf5 {[%emt 0:00:37]} 29. Rxc7 {[%emt 0:00:00]} Bxg4 {[%emt 0:00:02]} 30. Ree7 {[%emt 0:00:00]} Rf8 {[%emt 0:00:42]} 31. Kg2 {[%emt 0:00:00]} Kg6 {[%emt 0:00:05]} 32. Rxb7 {[%emt 0:00:00]} Be6 {[%emt 0:00:08]} 33. Rxe6+ {[%emt 0:00:00]} fxe6 {[%emt 0:00:02]} 34. Rxa7 {[%emt 0:00:00]} Kf6 {[%emt 0:00:26]} 35. Rc7 {[%emt 0:00:00]} Rb8 {[%emt 0:00:16]} 36. b4 {[%emt 0:00:00]} Ra8 {[%emt 0:00:07]} 37. Rxc6 {[%emt 0:00:00]} 1-0

[Event "Aktobe Open 2022"]
[Site "Aktobe"]
[Date "2022.06.14"]
[Round "1.9"]
[White "Makhnev, Denis"]
[Black "Moldagali, Beksultan"]
[Result "1-0"]
[ECO "E04"]
[WhiteElo "2505"]
[BlackElo "1748"]
[Annotator "RC"]
[PlyCount "65"]
[EventDate "2022.06.14"]
[EventType "swiss"]
[EventCountry "KAZ"]
[SourceTitle "playchess.com"]
[Source "ChessBase"]
[SourceQuality "1"]
[TimeControl "5400+30"]

1. d4 {[%emt 0:00:03]} Nf6 {[%emt 0:05:33]} 2. c4 {[%emt 0:00:16]} e6 {[%emt 0:00:43]} 3. Nf3 {[%emt 0:00:19]} d5 {[%emt 0:00:13]} 4. g3 {[%emt 0:00:27]} dxc4 {[%emt 0:01:58]} 5. Bg2 {[%emt 0:00:10]} Nc6 {[%emt 0:00:33]} 6. O-O {[%emt 0:00:19]} Rb8 {[%emt 0:01:24]} 7. a4 {[%emt 0:01:38]} Be7 {[%emt 0:08:24]} 8. Na3 {[%emt 0:03:28]} Na5 {[%emt 0:04:01]} 9. Qc2 {[%emt 0:03:52]} Bxa3 {[%emt 0:09:37]} 10. Rxa3 {[%emt 0:00:28]} O-O {[%emt 0:04:58]} 11. Rd1 {[%emt 0:10:16]} b6 {[%emt 0:07:07]} 12. Ne5 {[%emt 0:10:15]} Bb7 {[%emt 0:00:39]} 13. Bxb7 {[%emt 0:00:43]} Rxb7 {[%emt 0:00:06]} 14. Bg5 {[%emt 0:00:28]} Qd6 {[%emt 0:06:32]} 15. Bxf6 {[%emt 0:01:03]} gxf6 {[%emt 0:00:08]} 16. Nxc4 {[%emt 0:00:07]} Nxc4 {[%emt 0:01:17]} 17. Qxc4 {[%emt 0:00:06]} c6 {[%emt 0:11:25]} 18. Qc2 {[%emt 0:08:24]} f5 {[%emt 0:06:42]} 19. Rc3 {[%emt 0:02:30]} Rc7 {[%emt 0:02:48]} 20. d5 {[%emt 0:04:39]} Rd8 {[%emt 0:06:06]} 21. Qc1 {[%emt 0:08:12]} Rdd7 {[%emt 0:06:47]} 22. Qg5+ {[%emt 0:02:55]} Kh8 {[%emt 0:00:18]} 23. g4 {[%emt 0:10:11]} cxd5 {[%emt 0:10:39]} 24. Rxc7 {[%emt 0:03:12]} Rxc7 {[%emt 0:01:39]} 25. gxf5 {[%emt 0:01:49]} Qe7 {[%emt 0:02:13]} 26. f6 {[%emt 0:00:29]} Qf8 {[%emt 0:00:05]} 27. Kh1 {[%emt 0:00:06]} Qg8 {[%emt 0:01:25]} 28. Qe5 {[%emt 0:12:12]} Rc4 {[%emt 0:00:19]} 29. Rg1 {[%emt 0:00:06]} Qa8 {[%emt 0:00:49]} 30. Qg5 {[%emt 0:01:29]} d4+ {[%emt 0:00:29]} 31. f3 {[%emt 0:00:07]} Qf8 {[%emt 0:00:04]} 32. Qh4 {[%emt 0:00:11]} Qc5 {[%emt 0:00:57]} 33. Qh6 {[%emt 0:00:18]} 1-0

[Event "Aktobe Open 2022"]
[Site "Aktobe"]
[Date "2022.06.14"]
[Round "1.10"]
[White "Ayapov, Alimzhan"]
[Black "Utegaliyev, Azamat"]
[Result "0-1"]
[ECO "A48"]
[WhiteElo "1759"]
[BlackElo "2463"]
[Annotator "RC"]
[PlyCount "98"]
[EventDate "2022.06.14"]
[EventType "swiss"]
[EventCountry "KAZ"]
[SourceTitle "playchess.com"]
[Source "ChessBase"]
[SourceQuality "1"]
[TimeControl "5400+30"]

1. d4 {[%emt 0:00:57]} Nf6 {[%emt 0:00:20]} 2. Bf4 {[%emt 0:00:15]} g6 {[%emt 0:00:42]} 3. c3 {[%emt 0:00:34]} Bg7 {[%emt 0:00:05]} 4. Nd2 {[%emt 0:00:09]} O-O {[%emt 0:00:40]} 5. e4 {[%emt 0:00:07]} d6 {[%emt 0:01:05]} 6. Ngf3 {[%emt 0:00:11]} Nc6 {[%emt 0:01:19]} 7. Be2 {[%emt 0:00:26]} Bg4 {[%emt 0:00:20]} 8. Be3 {[%emt 0:00:25]} Bxf3 {[%emt 0:01:04]} 9. Bxf3 {[%emt 0:00:16]} e5 {[%emt 0:00:05]} 10. O-O {[%emt 0:05:39]} Nd7 {[%emt 0:02:58]} 11. d5 {[%emt 0:10:58]} Ne7 {[%emt 0:00:05]} 12. Be2 {[%emt 0:01:21]} f5 {[%emt 0:00:28]} 13. f3 {[%emt 0:00:36]} Nf6 {[%emt 0:00:48]} 14. c4 {[%emt 0:04:14]} c5 {[%emt 0:03:33]} 15. a3 {[%emt 0:07:48]} h5 {[%emt 0:00:26]} 16. b4 {[%emt 0:02:21]} b6 {[%emt 0:00:08]} 17. bxc5 {[%emt 0:08:06]} bxc5 {[%emt 0:00:57]} 18. Qa4 {[%emt 0:00:40]} Kh7 {[%emt 0:00:15]} 19. Rab1 {[%emt 0:02:18]} Qc7 {[%emt 0:00:18]} 20. Rb5 {[%emt 0:03:25]} Rab8 {[%emt 0:03:46]} 21. Rfb1 {[%emt 0:00:52]} Rb6 {[%emt 0:00:11]} 22. Qb3 {[%emt 0:07:17]} Rfb8 {[%emt 0:02:17]} 23. a4 {[%emt 0:00:52]} Bh6 {[%emt 0:00:16]} 24. Bxh6 {[%emt 0:01:43]} Kxh6 {[%emt 0:00:05]} 25. Qc3 {[%emt 0:02:40]} a6 {[%emt 0:00:45]} 26. a5 {[%emt 0:10:11]} R6b7 {[%emt 0:00:19]} 27. Rxb7 {[%emt 0:00:44]} Rxb7 {[%emt 0:00:05]} 28. Bd3 {[%emt 0:01:41]} Rxb1+ {[%emt 0:00:53]} 29. Bxb1 {[%emt 0:00:09]} f4 {[%emt 0:00:20]} 30. h4 {[%emt 0:03:45]} Nh7 {[%emt 0:01:52]} 31. g3 {[%emt 0:01:31]} fxg3 {[%emt 0:00:53]} 32. f4 {[%emt 0:02:02]} exf4 {[%emt 0:02:00]} 33. Qf3 {[%emt 0:03:22]} g5 {[%emt 0:00:15]} 34. hxg5+ {[%emt 0:00:34]} Nxg5 {[%emt 0:00:06]} 35. Qxf4 {[%emt 0:00:09]} Ng6 {[%emt 0:00:11]} 36. Qxg3 {[%emt 0:00:57]} Qxa5 {[%emt 0:00:18]} 37. Nf1 {[%emt 0:01:53]} Qa1 {[%emt 0:00:28]} 38. Bd3 {[%emt 0:03:06]} Qe5 {[%emt 0:01:06]} 39. Qe3 {[%emt 0:00:39]} Qf4 {[%emt 0:00:56]} 40. Qxf4 {[%emt 0:01:13]} Nxf4 {[%emt 0:00:05]} 41. Bb1 {[%emt 0:00:45]} Nf3+ {[%emt 0:00:42]} 42. Kf2 {[%emt 0:00:09]} Ne5 {[%emt 0:00:03]} 43. Ne3 {[%emt 0:00:31]} Kg5 {[%emt 0:00:08]} 44. Ba2 {[%emt 0:00:39]} Ng4+ {[%emt 0:00:22]} 45. Kf3 {[%emt 0:00:24]} Nxe3 {[%emt 0:00:09]} 46. Kxe3 {[%emt 0:00:04]} Ng6 {[%emt 0:00:08]} 47. Kf3 {[%emt 0:00:28]} h4 {[%emt 0:00:08]} 48. Bb3 {[%emt 0:00:11]} Ne5+ {[%emt 0:00:05]} 49. Kg2 {[%emt 0:00:40]} Kg4 {[%emt 0:00:15]} 0-1